bitfinex/quotes_BTCUSD_20251221
["timestamp","ask_amount","ask_price","bid_price","bid_amount"]
[1766326674094,5.31e-06,88108.0,88105.0,0.000247]
[1766326674292,5.31e-06,88108.0,88100.0,0.45656]
[1766326674455,5.31e-06,88108.0,88099.0,0.00572]
[1766326674456,5.31e-06,88108.0,88102.0,0.43684]
[1766326675778,5.31e-06,88108.0,88101.0,0.45656]
[1766326675779,0.03410495,88130.0,88103.0,0.01362042]
[1766326675990,0.03410495,88130.0,88099.0,0.00572]
[1766326675991,0.00055761,88122.0,88110.0,0.43684]
[1766326676197,0.00055761,88122.0,88113.0,0.43684]
[1766326676399,0.00055761,88122.0,88113.0,0.46228]
[1766326676595,0.00055761,88122.0,88114.0,0.43684]
[1766326676807,0.01134674,88131.0,88114.0,0.43684]
[1766326677034,0.45419687,88135.0,88118.0,0.43684]
[1766326677035,0.00592,88134.0,88118.0,0.43684]
[1766326677268,0.00592,88134.0,88094.0,0.02953612]
[1766326677269,0.000851,88118.0,88094.0,0.02953612]
[1766326677451,0.000851,88118.0,88095.0,0.05116]
[1766326677656,0.000851,88118.0,88094.0,0.01854222]
[1766326677852,0.0092485,88120.0,88094.0,0.01854222]
[1766326677853,0.44449829,88119.0,88097.0,0.43684]
[1766326678053,0.43315,88116.0,88097.0,0.43684]
[1766326678434,0.0092485,88115.0,88097.0,0.43684]
[1766326678995,0.0092485,88115.0,88097.0,0.8934]
[1766326679136,0.0092485,88115.0,88098.0,0.43684]
[1766326679500,0.00024771,88113.0,88098.0,0.43684]
[1766326680748,0.000301,88098.0,88094.0,0.01854222]
[1766326680975,0.43315,88109.0,88094.0,0.01854222]
[1766326680976,0.0092485,88108.0,88094.0,0.01854222]
[1766326681179,0.00054948,88094.0,88081.0,0.04544]
[1766326681334,0.00054948,88094.0,88082.0,0.00572]
[1766326681535,0.0092485,88094.0,88082.0,0.00572]
[1766326682387,0.00572,88102.0,88086.0,0.43684]
[1766326683822,0.00572,88102.0,88088.0,0.43684]
[1766326684028,0.00572,88102.0,88088.0,0.44256]
[1766326684803,0.43315,88101.0,88088.0,0.00572]
[1766326686469,0.00572,88102.0,88089.0,0.8734]
[1766326686820,0.00024771,88113.0,88102.0,0.000248]
[1766326687056,0.00024771,88113.0,88102.0,0.428458]
[1766326687233,0.00024771,88113.0,88102.0,0.42821]
[1766326688462,0.0001,88104.0,88102.0,0.42821]
[1766326688664,0.4403,88117.0,88102.0,0.42821]
[1766326689088,0.4403,88117.0,88101.0,0.42821]
[1766326690279,0.4403,88115.0,88101.0,0.427259]
[1766326691958,0.4403,88115.0,88095.0,0.00572]
[1766326691959,0.4403,88114.0,88095.0,0.45091]
[1766326692386,0.4403,88114.0,88096.0,0.44519]
[1766326692556,0.4403,88114.0,88098.0,0.42821]
[1766326692935,0.0092485,88113.0,88100.0,0.42821]
[1766326693138,0.0092485,88113.0,88101.0,0.00572]
[1766326693742,0.0092485,88113.0,88102.0,0.42821]
[1766326693984,0.0092485,88113.0,88102.0,0.44519]
[1766326694315,0.45164841,88118.0,88102.0,0.44519]
[1766326694516,0.01134867,88116.0,88102.0,0.44519]
[1766326694717,0.4403,88114.0,88095.0,0.42796229]
[1766326694987,0.44602,88113.0,88096.0,0.00572]
[1766326695550,0.07492524,88121.0,88097.0,0.44519]
[1766326695551,0.01818461,88121.0,88097.0,0.44519]
[1766326695753,0.01134738,88126.0,88097.0,0.44519]
[1766326695754,0.0092485,88120.0,88097.0,0.44519]
[1766326695954,0.02953225,88124.0,88097.0,0.44519]
[1766326695955,0.4403,88117.0,88097.0,0.44519]
[1766326696152,0.4403,88117.0,88088.0,0.01135228]
[1766326696153,0.4426,88112.0,88098.0,0.00572]
[1766326696393,0.4403,88110.0,88098.0,0.00572]
[1766326697607,0.0092485,88109.0,88098.0,0.00572]
[1766326698205,0.46773311,88109.0,88098.0,0.00572]
[1766326698405,0.45848461,88109.0,88098.0,0.00572]
[1766326699585,0.10162673,88108.0,88098.0,0.00572]
[1766326699781,0.4426,88100.0,88088.0,0.00572]
[1766326699993,0.4495485,88099.0,88088.0,0.00572]
[1766326700211,0.4495485,88098.0,88088.0,0.00572]
[1766326700526,0.01818461,88095.0,88084.0,0.00582]
[1766326700956,0.4403,88098.0,88084.0,0.00582]
[1766326701109,0.00572,88102.0,88095.0,0.000549]
[1766326701320,0.00572,88102.0,88086.0,0.42821]
[1766326701663,0.4403,88101.0,88086.0,0.42821]
[1766326703204,0.00572,88102.0,88084.0,0.00582]
[1766326703205,0.4403,88100.0,88084.0,0.00582]
[1766326703413,0.4403,88097.0,88084.0,0.00582]
[1766326703631,0.4403,88096.0,88085.0,0.0001]
[1766326704642,0.4403,88094.0,88085.0,0.0001]
[1766326704838,0.4495485,88093.0,88085.0,0.0001]
[1766326705036,0.4403,88093.0,88085.0,0.0001]
[1766326705304,0.0092485,88092.0,88085.0,0.0001]
[1766326706875,0.00572,88096.0,88092.0,0.00055]
[1766326707099,0.00572,88099.0,88092.0,0.00055]
[1766326707270,0.00572,88099.0,88090.0,0.42766]
[1766326707727,0.41941,88105.0,88099.0,0.00055]
[1766326707936,0.00572,88100.0,88099.0,0.00055]
[1766326708346,0.00572,88100.0,88090.0,0.42766]
[1766326711950,0.00572,88100.0,88089.0,0.00572]
[1766326712095,0.000549,88090.0,88089.0,0.00572]
[1766326712283,0.000549,88090.0,88081.0,0.00010731]
[1766326712284,0.419859,88090.0,88081.0,0.00010731]
[1766326712510,0.41931,88090.0,88081.0,0.00010731]
[1766326715361,0.40531,88090.0,88081.0,0.00010731]
[1766326715911,0.84102,88090.0,88081.0,0.00010731]
[1766326719484,0.40531,88090.0,88081.0,0.00010731]
[1766326719782,0.84102,88082.0,88081.0,3.1e-07]
[1766326720272,0.43571,88082.0,88081.0,3.1e-07]
[1766326721677,0.84102,88082.0,88081.0,3.1e-07]
[1766326721887,0.84102,88082.0,88074.0,0.0001]
[1766326721888,0.84102,88075.0,88074.0,3.1e-07]
[1766326722055,0.84102,88071.0,88057.0,0.00572]
[1766326722268,0.01135434,88072.0,88057.0,4.875e-05]
[1766326722510,0.40531,88070.0,88057.0,4.875e-05]
[1766326722675,0.43571,88069.0,88057.0,4.875e-05]
[1766326723304,0.43571,88068.0,88057.0,4.875e-05]
[1766326726343,0.43571,88066.0,88057.0,4.875e-05]
[1766326727204,0.43571,88071.0,88057.0,0.43494875]
[1766326729184,0.00572,88075.0,88059.0,0.4349]
[1766326729521,0.44143,88075.0,88060.0,0.4349]
[1766326730222,0.43571,88073.0,88060.0,0.4349]
[1766326730755,0.44706421,88073.0,88060.0,0.4349]
[1766326731211,0.01818461,88071.0,88060.0,0.4349]
[1766326732423,0.43571,88070.0,88057.0,4.875e-05]
[1766326732641,0.43571,88070.0,88057.0,0.43494875]
[1766326733401,0.43571,88070.0,88064.0,0.0001]
[1766326734737,0.01818461,88073.0,88064.0,0.0001]
[1766326734931,0.02953882,88073.0,88064.0,0.0001]
[1766326735315,0.45389461,88073.0,88064.0,0.0001]
[1766326735853,0.46524882,88073.0,88064.0,0.0001]
[1766326736057,0.45389461,88073.0,88064.0,0.0001]
[1766326736279,0.43571,88072.0,88064.0,0.0001]
[1766326736874,0.0113537,88077.0,88064.0,0.0001]
[1766326737079,0.44143,88079.0,88072.0,0.000107]
[1766326737253,0.44143,88079.0,88064.0,0.44266]
[1766326737254,0.01135292,88083.0,88064.0,0.0001]
[1766326737437,0.01145279,88084.0,88064.0,0.0001]
[1766326737438,0.02953779,88081.0,88064.0,0.0001]
[1766326737671,0.01135331,88080.0,88065.0,0.87746]
[1766326738027,0.01818461,88081.0,88066.0,0.4349]
[1766326738175,0.01818461,88081.0,88067.0,0.4349]
[1766326738813,0.44706331,88080.0,88067.0,0.4349]
[1766326738971,0.01818461,88081.0,88069.0,0.4349]
[1766326739176,0.01807761,88081.0,88070.0,0.45424552]
[1766326739396,0.01807761,88081.0,88072.0,0.87746]
[1766326739604,0.01807761,88081.0,88073.0,0.01362506]
[1766326739916,0.01807761,88081.0,88072.0,0.87746]
[1766326739917,0.01135189,88091.0,88078.0,0.44256]
[1766326740128,0.01135189,88091.0,88079.0,0.4349]
[1766326740474,0.01135202,88090.0,88079.0,0.4349]
[1766326740696,0.01135189,88091.0,88079.0,0.4349]
[1766326740878,0.44706176,88092.0,88079.0,0.4349]
[1766326741282,0.01135215,88089.0,88078.0,0.00572]
[1766326741671,0.01818461,88081.0,88078.0,0.005171]
[1766326742517,0.01763561,88081.0,88078.0,0.005171]
[1766326742718,0.43571,88091.0,88078.0,0.005171]
[1766326743526,0.44706189,88091.0,88078.0,0.005171]
[1766326743915,0.01135202,88090.0,88078.0,0.005171]
[1766326744108,0.01135215,88089.0,88078.0,0.005171]
[1766326744424,0.43571,88080.0,88078.0,0.005171]
[1766326744762,0.01818461,88081.0,88078.0,0.005171]
[1766326745686,0.01818461,88081.0,88075.0,0.00572]
[1766326749180,0.44706241,88087.0,88076.0,0.4416]
[1766326749181,0.43571,88087.0,88076.0,0.4416]
[1766326749381,4.61e-06,88081.0,88076.0,0.4416]
[1766326750458,0.00572,88088.0,88077.0,0.85485]
[1766326751081,0.01707228,88088.0,88077.0,0.85485]
[1766326751301,0.00572,88088.0,88077.0,0.85485]
[1766326752208,0.01707228,88088.0,88077.0,0.85485]
[1766326753410,0.01135241,88087.0,88077.0,0.85485]
[1766326753607,0.000549,88077.0,88075.0,0.00572]
[1766326754107,0.42404267,88085.0,88075.0,0.00572]
[1766326754108,0.01135279,88084.0,88075.0,0.00572]
[1766326754329,0.01818461,88081.0,88075.0,0.00572]
[1766326754727,0.01818461,88081.0,88075.0,0.005171]
[1766326758555,0.01818461,88081.0,88075.0,0.446771]
[1766326759720,0.01707228,88088.0,88075.0,0.446771]
[1766326759923,0.00572,88088.0,88077.0,0.4416]
[1766326761992,0.01707228,88088.0,88077.0,0.4416]
[1766326762815,0.00572,88088.0,88077.0,0.4416]
[1766326763229,0.01707228,88088.0,88077.0,0.4416]
[1766326763430,0.0001,88085.0,88077.0,0.4416]
[1766326764629,0.00572,88088.0,88079.0,0.4416]
[1766326764852,0.00572,88088.0,88081.0,0.85485]
[1766326765890,0.01145151,88094.0,88088.0,0.405729]
[1766326765891,0.00582,88094.0,88088.0,0.405729]
[1766326766257,0.02222428,88095.0,88088.0,0.405729]
[1766326766393,0.03357566,88095.0,88088.0,0.40528]
[1766326766733,0.02222428,88095.0,88088.0,0.40528]
[1766326766933,0.03357566,88095.0,88088.0,0.40528]
[1766326767112,0.03365681,88095.0,88088.0,0.40528]
[1766326767317,0.02230543,88095.0,88088.0,0.40528]
[1766326768006,0.0001,88088.0,88085.0,0.40115]
[1766326768565,0.02230543,88095.0,88085.0,0.40115]
[1766326768764,0.01658543,88095.0,88087.0,0.40115]
[1766326768939,0.02230543,88095.0,88087.0,0.40115]
[1766326770139,0.01818461,88094.0,88088.0,0.40528]
[1766326770393,4.61e-06,88094.0,88089.0,0.40115]
[1766326771350,0.44528022,88104.0,88089.0,0.80643]
[1766326771551,0.01707035,88103.0,88091.0,0.40115]
[1766326771820,0.01707035,88103.0,88077.0,0.40115]
[1766326771821,0.00572,88103.0,88077.0,0.40115]
[1766326772021,0.00572,88103.0,88078.0,0.05116]
[1766326772182,0.02270134,88104.0,88079.0,0.01362413]
[1766326772183,0.01135112,88104.0,88079.0,0.01362413]
[1766326772396,0.00572,88103.0,88079.0,0.01362413]
[1766326773218,0.01135048,88102.0,88078.0,0.05116]
[1766326773586,0.01707035,88103.0,88078.0,0.05116]
[1766326773918,0.00572,88103.0,88079.0,0.80643]
[1766326774082,0.01707035,88103.0,88079.0,0.80643]
[1766326774288,0.01707035,88103.0,88079.0,0.40115]
[1766326774496,0.01707035,88103.0,88078.0,0.05116]
[1766326774896,0.01707035,88103.0,88079.0,0.84106]
[1766326775101,0.01707035,88103.0,88078.0,0.05116]
[1766326775594,0.00572,88103.0,88079.0,0.84077]
[1766326775794,0.00572,88103.0,88078.0,0.05116]
[1766326775997,0.00572,88103.0,88079.0,0.84077]
[1766326776213,0.00572,88103.0,88078.0,0.05116]
[1766326776399,0.07382257,88103.0,88079.0,0.84077]
[1766326776737,0.07382257,88103.0,88078.0,0.05116]
[1766326776738,0.05675304,88101.0,88078.0,0.05116]
[1766326777060,0.84704,88100.0,88078.0,0.05116]
[1766326777215,0.05675304,88101.0,88078.0,0.05116]
[1766326777424,0.84704,88100.0,88078.0,0.47827]
[1766326777830,0.0113506,88101.0,88078.0,0.47827]
[1766326778433,0.84704,88100.0,88084.0,0.0001]
[1766326778616,0.84704,88100.0,88077.0,8.115e-05]
[1766326778617,0.0001,88084.0,88077.0,1.15e-06]
[1766326778829,0.01145279,88084.0,88056.0,0.42711]
[1766326779032,0.01145279,88084.0,88066.0,0.00572]
[1766326779033,0.0001,88084.0,88066.0,0.00572]
[1766326779254,0.01135267,88085.0,88066.0,0.00572]
[1766326779255,0.41771,88080.0,88066.0,0.00572]
[1766326779495,0.42933,88077.0,88066.0,0.00572]
[1766326779697,0.428881,88077.0,88066.0,0.00572]
[1766326782473,0.42933,88075.0,88066.0,0.00572]
[1766326782656,0.42878,88075.0,88066.0,0.00572]
[1766326786737,0.42933,88069.0,88067.0,0.00572]
[1766326786939,0.43589461,88080.0,88067.0,0.00572]
[1766326787103,0.41771,88078.0,88067.0,0.00572]
[1766326787299,0.41771,88076.0,88067.0,0.00572]
[1766326787523,0.42933,88073.0,88067.0,0.00572]
[1766326789029,0.42933,88072.0,88067.0,0.00572]
[1766326793668,0.42933,88071.0,88067.0,0.00572]
[1766326794073,0.42933,88071.0,88057.0,0.4147]
[1766326794074,0.84704,88066.0,88057.0,0.0001]
[1766326794302,0.84704,88066.0,88058.0,0.00572]
[1766326794303,0.41771,88066.0,88058.0,0.00572]
[1766326794543,0.42933,88065.0,88058.0,0.00572]
[1766326795880,0.42933,88065.0,88058.0,0.01707615]
[1766326796080,0.42933,88075.0,88061.0,0.42711]
[1766326796584,0.42943,88077.0,88064.0,0.43846537]
[1766326796803,0.42943,88077.0,88065.0,0.00572]
[1766326797008,0.42943,88077.0,88066.0,0.42711]
[1766326797208,0.0001,88077.0,88066.0,0.42711]
[1766326797409,0.00010724,88080.0,88073.0,0.4146]
[1766326797630,0.00010724,88080.0,88074.0,0.43283]
[1766326798834,0.42933,88086.0,88074.0,0.43283]
[1766326798835,0.42933,88086.0,88076.0,0.43846383]
[1766326799038,0.42933,88086.0,88076.0,0.42711]
[1766326799039,0.42941119,88086.0,88076.0,0.42711]
[1766326799418,0.42941119,88086.0,88076.0,0.43846383]
[1766326800036,0.42941119,88086.0,88077.0,0.0113537]
[1766326800448,0.42941119,88086.0,88076.0,0.43846383]
[1766326801386,0.42941119,88086.0,88076.0,0.42711]
[1766326801730,0.42619636,88086.0,88077.0,0.0113537]
[1766326802362,0.42619636,88086.0,88076.0,0.43846383]
[1766326802696,0.42619636,88086.0,88076.0,0.42711]
[1766326803063,0.42619636,88086.0,88076.0,0.43846383]
[1766326803387,0.42619636,88086.0,88076.0,0.42711]
[1766326805047,0.42619636,88086.0,88077.0,0.0113537]
[1766326805250,0.42619636,88086.0,88076.0,0.43846383]
[1766326807116,8.119e-05,88086.0,88077.0,0.4189337]
[1766326807332,8.119e-05,88086.0,88078.0,0.39981357]
[1766326807449,8.119e-05,88086.0,88078.0,0.01135357]
[1766326808135,8.119e-05,88086.0,88083.0,0.01135292]
[1766326808275,1.19e-06,88086.0,88082.0,0.40553305]
[1766326808633,1.19e-06,88086.0,88082.0,0.46229828]
[1766326809218,1.19e-06,88086.0,88084.0,0.38846]
[1766326810499,0.40374,88097.0,88085.0,0.4020832]
[1766326810703,0.40374,88097.0,88085.0,0.38846]
[1766326810907,0.40374,88096.0,88083.0,0.40758]
[1766326811116,0.40374,88095.0,88083.0,0.40758]
[1766326814503,0.10883914,88107.0,88085.0,0.79604]
[1766326814504,0.43784976,88107.0,88085.0,0.79604]
[1766326814704,0.43784976,88107.0,88084.0,0.0295374]
[1766326814705,0.40374,88103.0,88084.0,0.0295374]
[1766326814853,0.40374,88103.0,88087.0,0.39981241]
[1766326815055,0.79111,88102.0,88088.0,0.00572]
[1766326815371,0.0001,88104.0,88088.0,0.01707228]
[1766326815372,0.40374,88100.0,88088.0,0.01707228]
[1766326815573,0.40374,88100.0,88090.0,0.01135202]
[1766326815791,0.40374,88100.0,88089.0,0.01135215]
[1766326815975,0.40374,88100.0,88088.0,0.01707228]
[1766326816425,0.0001,88104.0,88088.0,0.005171]
[1766326816426,0.40374,88098.0,88088.0,0.005171]
[1766326816612,0.38737,88096.0,88088.0,0.005171]
[1766326816783,0.40374,88095.0,88088.0,0.005171]
[1766326817187,0.38737,88102.0,88088.0,0.005171]
[1766326817390,0.40374,88099.0,88088.0,0.005171]
[1766326817594,0.40374,88096.0,88088.0,0.005171]
[1766326817798,0.40374,88096.0,88080.0,0.44522619]
[1766326817799,0.38737,88091.0,88074.0,0.38846]
[1766326818022,0.40374,88086.0,88075.0,0.00572]
[1766326818332,0.40374,88084.0,88075.0,0.00572]
[1766326819653,0.40374,88084.0,88075.0,0.01707395]
[1766326819856,0.40374,88084.0,88075.0,0.07384328]
[1766326820060,0.40374,88084.0,88075.0,0.00572]
[1766326823097,0.40374,88084.0,88070.0,0.45304432]
[1766326823098,0.00055,88075.0,88070.0,0.03410972]
[1766326823292,0.00055,88075.0,88071.0,0.00572]
[1766326823520,0.40374,88081.0,88071.0,0.00572]
[1766326827229,0.40777,88090.0,88073.0,0.41668]
[1766326827439,0.39261,88087.0,88071.0,0.00572]
[1766326827641,0.40777,88086.0,88071.0,0.00572]
[1766326827840,0.40777,88085.0,88071.0,0.00572]
[1766326828081,0.40777,88085.0,88071.0,0.39172]
[1766326828283,0.40777,88084.0,88071.0,0.39172]
[1766326829238,0.40777,88084.0,88072.0,0.386]
[1766326830782,0.40777,88084.0,88072.0,0.38608119]
[1766326831369,0.40777,88090.0,88074.0,0.41668]
[1766326831576,0.39261,88090.0,88075.0,0.386]
[1766326831783,0.40777,88089.0,88076.0,0.00572]
[1766326831984,0.40777,88089.0,88076.0,0.01707383]
[1766326832219,0.40777,88089.0,88076.0,0.00572]
[1766326833284,0.40777,88086.0,88076.0,0.00572]
[1766326837273,0.39261,88091.0,88076.0,0.00572]
[1766326837471,0.38319,88093.0,88077.0,0.42776]
[1766326837636,0.4261,88090.0,88077.0,0.42776]
[1766326838402,0.4261,88090.0,88077.0,0.82699]
[1766326838973,0.38319,88090.0,88077.0,0.82699]
[1766326839182,0.4261,88089.0,88077.0,0.82699]
[1766326839969,0.4261,88089.0,88078.0,0.39923]
[1766326840759,0.4261,88089.0,88077.0,0.42776]
[1766326840958,0.4261,88089.0,88076.0,0.00572]
[1766326840959,0.38319,88089.0,88076.0,0.00572]
[1766326841165,0.4261,88088.0,88076.0,0.00572]
[1766326842792,0.4261,88088.0,88076.0,0.01707383]
[1766326843054,0.4261,88088.0,88076.0,0.00572]
[1766326843492,0.4261,88088.0,88076.0,0.01707383]
[1766326843979,0.4261,88088.0,88076.0,0.00572]
[1766326844186,0.4261,88088.0,88076.0,0.01707383]
[1766326846169,0.4261,88088.0,88077.0,0.0113537]
[1766326846553,0.4261,88088.0,88078.0,0.01135357]
[1766326846762,0.4261,88088.0,88077.0,0.4105837]
[1766326847482,0.4261,88088.0,88077.0,0.39923]
[1766326847837,0.00017,88089.0,88081.0,0.39923]
[1766326848064,0.00017,88089.0,88082.0,0.00572]
[1766326848376,0.00017,88089.0,88083.0,0.39923]
[1766326848563,0.00017,88089.0,88082.0,0.00572]
[1766326852005,0.4261,88088.0,88082.0,0.00517]
[1766326853296,0.425551,88088.0,88082.0,0.00517]
[1766326857912,0.00017,88089.0,88082.0,0.00517]
[1766326859414,0.00017,88089.0,88083.0,0.41058292]
[1766326859615,0.4261,88094.0,88083.0,0.39923]
[1766326860155,0.4261,88093.0,88082.0,0.43293]
[1766326860359,0.4261,88093.0,88082.0,0.00517]
[1766326861347,0.4261,88093.0,88083.0,0.39923]
[1766326861561,0.4261,88093.0,88082.0,0.01652305]
[1766326861983,0.4261,88093.0,88082.0,0.00517]
[1766326862183,0.4261,88093.0,88081.0,0.42776]
[1766326862463,0.4261,88091.0,88083.0,0.00572]
[1766326864369,0.4261,88091.0,88076.0,0.01135383]
[1766326864370,0.4261,88082.0,88072.0,8.119e-05]
[1766326864576,0.40762549,88082.0,88073.0,0.05116]
[1766326865640,0.40762549,88082.0,88074.0,0.05116]
[1766326866075,0.4104,88090.0,88075.0,0.40899]
[1766326866705,0.38867,88089.0,88075.0,0.42034395]
[1766326867534,0.38867,88089.0,88075.0,0.82484395]
[1766326867959,0.38867,88089.0,88076.0,0.01135383]
[1766326868273,0.38867,88089.0,88075.0,0.82484395]
[1766326869179,0.38867,88089.0,88076.0,0.01135383]
[1766326869541,0.38867,88087.0,88075.0,0.82484395]
[1766326870122,0.38867,88087.0,88076.0,0.01135383]
[1766326870861,0.38867,88087.0,88075.0,0.82484395]
[1766326871243,0.38867,88087.0,88076.0,0.01135383]
[1766326871865,0.38867,88087.0,88075.0,0.82484395]
[1766326872565,0.38867,88087.0,88076.0,0.01135383]
[1766326873147,0.38867,88087.0,88075.0,0.82484395]
[1766326873786,0.38867,88087.0,88076.0,0.01135383]
[1766326874005,0.38867,88087.0,88075.0,0.82484395]
[1766326874207,0.38867,88087.0,88076.0,0.01135383]
[1766326874820,0.00572,88099.0,88083.0,0.40899]
[1766326874821,0.38867,88098.0,88083.0,0.40899]
[1766326875026,0.38867,88096.0,88084.0,0.01707279]
[1766326875239,0.40724,88094.0,88087.0,0.00038]
[1766326875439,0.38867,88093.0,88084.0,0.01707279]
[1766326875637,0.38867,88093.0,88085.0,0.01135267]
[1766326875834,0.06236937,88105.0,88084.0,0.01707279]
[1766326875835,0.00582,88105.0,88089.0,0.40899]
[1766326876040,0.40659,88104.0,88090.0,0.41471]
[1766326876907,0.40659,88104.0,88090.0,0.00572]
[1766326877344,0.40659,88104.0,88090.0,0.01707202]
[1766326877548,0.0001,88104.0,88092.0,0.01135176]
[1766326877757,0.4059,88102.0,88090.0,0.00572]
[1766326878072,0.0001,88104.0,88089.0,0.01135215]
[1766326878073,0.38867,88100.0,88091.0,0.00572]
[1766326880331,0.38867,88100.0,88091.0,0.005551]
[1766326880478,0.38867,88097.0,88091.0,0.005551]
[1766326881068,0.0001,88104.0,88079.0,0.01135344]
[1766326881069,0.39759,88096.0,88092.0,0.00572]
[1766326881271,0.78109,88103.0,88079.0,0.01135344]
[1766326881476,0.08732934,88103.0,88080.0,0.05116]
[1766326881706,0.78109,88103.0,88080.0,0.05116]
[1766326881922,0.01145022,88104.0,88080.0,0.05116]
[1766326882129,0.01818461,88096.0,88081.0,0.00572]
[1766326882288,0.01818461,88096.0,88074.0,0.01145022]
[1766326882662,0.78113,88095.0,88075.0,0.00572]
[1766326883015,0.7811,88094.0,88075.0,0.00572]
[1766326883837,0.01818461,88095.0,88075.0,0.00572]
[1766326884623,0.78039,88094.0,88075.0,0.00572]
[1766326884822,0.01818461,88095.0,88075.0,0.00572]
[1766326885034,0.77969,88094.0,88075.0,0.00572]
[1766326885214,0.7665,88094.0,88075.0,0.00572]
[1766326885535,0.01818461,88095.0,88075.0,0.00572]
[1766326886524,0.7665,88094.0,88075.0,0.00572]
[1766326887008,0.01818461,88095.0,88075.0,0.00572]
[1766326887208,0.01818461,88096.0,88075.0,0.00572]
[1766326887621,0.01818461,88095.0,88075.0,0.00572]
[1766326887955,0.36967,88092.0,88075.0,0.00572]
[1766326888156,0.36967,88089.0,88075.0,0.00572]
[1766326888317,0.39683,88088.0,88075.0,0.00572]
[1766326888663,0.39683,88088.0,88076.0,0.01135383]
[1766326889033,0.39683,88088.0,88075.0,0.01707395]
[1766326889238,0.39115318,88088.0,88075.0,0.01707395]
[1766326889474,0.39115318,88088.0,88076.0,0.01135383]
[1766326890046,0.76082318,88088.0,88076.0,0.01135383]
[1766326890257,0.36967,88088.0,88075.0,0.01707395]
[1766326890460,0.36967,88088.0,88076.0,0.01135383]
[1766326890863,0.36967,88088.0,88075.0,0.01707395]
[1766326891064,0.36967,88088.0,88075.0,0.00572]
[1766326891251,0.39683,88087.0,88075.0,0.00572]
[1766326891661,0.39683,88085.0,88075.0,0.00572]
[1766326893696,0.39683,88084.0,88075.0,0.00572]
[1766326894379,0.396281,88084.0,88075.0,0.00572]
[1766326897708,0.0228043,88095.0,88075.0,0.01707395]
[1766326897923,0.37893,88091.0,88076.0,0.79600383]
[1766326898128,0.38378,88090.0,88077.0,0.78465]
[1766326898333,0.0228043,88095.0,88077.0,0.78465]
[1766326898536,0.76271,88094.0,88077.0,0.78465]
[1766326898939,0.0228043,88095.0,88077.0,0.78465]
[1766326899145,0.76271,88094.0,88077.0,0.78465]
[1766326899778,0.0228043,88095.0,88077.0,0.78465]
[1766326900131,0.76271,88094.0,88077.0,0.78465]
[1766326900765,0.0228043,88095.0,88077.0,0.78465]
[1766326901265,0.0228043,88095.0,88077.0,0.0113537]
[1766326901471,0.76271,88094.0,88077.0,0.0113537]
[1766326901612,0.0228043,88095.0,88077.0,0.0113537]
[1766326901813,0.76271,88094.0,88077.0,0.0113537]
[1766326902353,0.0228043,88095.0,88077.0,0.0113537]
[1766326902559,0.0228043,88095.0,88081.0,0.05676544]
[1766326902869,0.37893,88092.0,88082.0,0.01707305]
[1766326903070,0.38378,88091.0,88084.0,0.01135279]
[1766326903433,0.38378,88091.0,88083.0,0.01135292]
[1766326903632,0.38378,88091.0,88084.0,0.01135279]
[1766326904450,0.38378,88091.0,88085.0,0.01135267]
[1766326904658,0.0001,88104.0,88091.0,0.7852]
[1766326904837,0.0001,88104.0,88092.0,0.79037]
[1766326905039,0.37903,88104.0,88092.0,0.79037]
[1766326905317,0.37903,88104.0,88092.0,0.40099]
[1766326906673,0.38378,88103.0,88092.0,0.40099]
[1766326907869,0.0001,88104.0,88094.0,0.39527]
[1766326911740,0.0001,88104.0,88094.0,0.40662151]
[1766326911949,0.0001,88104.0,88094.0,0.39527]
[1766326912150,0.76271,88102.0,88092.0,0.00572]
[1766326912403,0.76271,88102.0,88092.0,0.01707176]
[1766326912759,0.76271,88102.0,88092.0,0.00572]
[1766326912967,0.76271,88102.0,88092.0,0.01707176]
[1766326913163,0.76271,88102.0,88092.0,0.00572]
[1766326914314,0.76271,88102.0,88092.0,0.01707176]
[1766326914555,0.76271,88102.0,88092.0,0.00572]
[1766326916338,0.0001,88104.0,88092.0,0.00572]
[1766326916553,0.76271,88103.0,88092.0,0.00572]
[1766326917145,0.37893,88103.0,88092.0,0.00572]
[1766326917304,0.38378,88102.0,88092.0,0.00572]
[1766326917507,0.38378,88102.0,88092.0,0.01707176]
[1766326917701,0.38378,88102.0,88092.0,0.00572]
[1766326917906,0.00572,88111.0,88096.0,0.78465]
[1766326918115,0.37893,88110.0,88098.0,0.01135099]
[1766326918315,0.00572,88111.0,88099.0,0.78465]
[1766326918533,0.00572,88111.0,88100.0,0.39527]
[1766326920470,0.00572,88111.0,88101.0,0.01362073]
[1766326920634,0.00572,88111.0,88102.0,0.00572]
[1766326921700,0.38378,88110.0,88102.0,0.00572]
[1766326922086,0.03410433,88116.0,88102.0,0.00572]
[1766326922087,0.37893,88116.0,88102.0,0.00572]
[1766326922284,0.76271,88116.0,88102.0,0.00572]
[1766326923011,0.03410332,88117.0,88101.0,0.38938]
[1766326923215,0.76271,88116.0,88101.0,0.3951]
[1766326923413,0.37893,88116.0,88103.0,0.78465]
[1766326923614,0.37893,88116.0,88104.0,0.01135022]
[1766326923788,0.37893,88116.0,88105.0,0.01135009]
[1766326923990,0.38378,88118.0,88106.0,0.00572]
[1766326924191,0.76271,88118.0,88106.0,0.00572]
[1766326924763,0.76271,88118.0,88107.0,0.78465]
[1766326924964,0.83011123,88125.0,88107.0,0.41012]
[1766326925241,0.79601,88125.0,88108.0,0.02496934]
[1766326925534,0.79601,88125.0,88109.0,0.80847]
[1766326925732,0.00572,88126.0,88109.0,0.81981957]
[1766326926285,0.79601,88125.0,88109.0,0.81981957]
[1766326926501,0.00572,88126.0,88109.0,0.81981957]
[1766326926817,0.79601,88125.0,88109.0,0.81981957]
[1766326927117,0.00572,88126.0,88110.0,0.01134944]
[1766326927278,0.00572,88126.0,88111.0,0.01706932]
[1766326927477,0.00572,88126.0,88113.0,0.01134906]
[1766326927674,0.40508,88125.0,88111.0,0.07381533]
[1766326927886,0.00572,88126.0,88113.0,0.80847]
[1766326928090,0.00572,88126.0,88113.0,0.39835]